[Event "Marshall Masters 44"]
[Site "New York"]
[Date "2024.12.18"]
[Round "3.2"]
[White "Zeltsan, Joseph"]
[Black "Lenderman, Aleksandr"]
[Result "1/2-1/2"]
[ECO "D06"]
[WhiteElo "2405"]
[BlackElo "2480"]
[Annotator "TA"]
[PlyCount "96"]
[EventDate "2024.12.17"]
[EventType "swiss"]
[EventCountry "USA"]
[SourceTitle "playchess.com"]
[Source "ChessBase"]
[SourceQuality "1"]
[TimeMode "Bronstein"]
[TimeControl "1500+5"]

{[%evp 12,96,56,57,65,64,76,50,28,18,19,0,0,0,5,-14,2,-66,-66,-70,-66,-64,-65,-62,-72,-83,-12,-23,21,8,7,2,16,0,38,43,45,36,45,47,142,150,147,143,141,143,120,125,125,127,125,110,266,41,501,508,812,812,656,80,80,80,80,39,80,80,1188,80,80,80,958,1097,814,760,553,0,80,0,683,0,0,0,0,0,80,0,55]} 1. d4 {[%emt 0:00:05]} d5 {[%emt 0:00:05]} 2. c4 {[%emt 0:00:05]} c5 {[%emt 0:00:09]} 3. cxd5 {[%emt 0:01:33]} Nf6 {[%emt 0:00:08]} 4. e4 {[%emt 0:00:05]} Nxe4 {[%emt 0:00:14]} 5. dxc5 {[%emt 0:00:05]} Qa5+ {[%emt 0:01:17]} 6. Bd2 {[%emt 0:00:27]} Nxd2 {[%emt 0:00:25]} 7. Qxd2 {[%emt 0:00:05]} Qxd2+ {[%emt 0:00:36]} 8. Nxd2 {[%emt 0:00:14]} g6 {[%emt 0:00:05]} 9. b4 {[%emt 0:03:20]} Bg7 {[%emt 0:00:50]} 10. Rc1 {[%emt 0:00:05]} O-O {[%emt 0:00:14]} 11. Ngf3 {[%emt 0:00:09]} Rd8 {[%emt 0:00:36]} 12. Bc4 {[%emt 0:00:06]} Na6 $1 {[%emt 0:00:15]} 13. a3 {[%emt 0:03:05]} Nc7 {[%emt 0:00:05] [#]} 14. d6 {[%emt 0:00:07]} (14. O-O $1 $11) 14... exd6 $15 {[%emt 0:00:07]} 15. cxd6 {[%emt 0:00:05]} Ne8 {[%emt 0:00:09]} 16. Ne4 {[%emt 0:00:05]} Nxd6 {[%emt 0:01:58]} 17. Nxd6 {[%emt 0:00:05]} Rxd6 {[%emt 0:00:05]} 18. Ng5 {[%emt 0:00:29]} Rd7 {[%emt 0:02:59]} (18... Bb2 $1 $17 {[%cal Rb2c1]} 19. Nxf7 Rb6 20. Ng5+ Kg7) 19. O-O {[%emt 0:01:04]} Bh6 {[%emt 0:00:40]} 20. h4 {[%emt 0:05:17]} Kg7 {[%emt 0:00:27]} 21. Rfe1 {[%emt 0:01:05]} a5 {[%emt 0:03:18]} 22. Bb5 {[%emt 0:04:42]} Bxg5 {[%emt 0:01:32]} 23. hxg5 {[%emt 0:00:13]} Rd5 {[%emt 0:00:10]} 24. Bc4 {[%emt 0:00:05]} Rxg5 {[%emt 0:00:35]} 25. Re7 {[%emt 0:00:11]} Bh3 {[%emt 0:03:03]} (25... Rf5 $6 26. Re8 $16) (25... Kh6 $14) 26. Rxf7+ $16 {[%emt 0:00:05]} (26. Bxf7 $6 Kf6 (26... Bxg2 $2 27. f4 $18) (26... Rxg2+ 27. Kh1 $15) 27. Re3 Rxg2+ (27... Bxg2 28. f4 $11) 28. Kh1 Rxf2 (28... Kxf7 29. Rxh3 Rxf2 30. Rxh7+ Kf6 31. Rxb7 $11) 29. Rxh3 Kxf7 $11) 26... Kh6 {[%emt 0:00:05]} 27. Bf1 {[%emt 0:00:19]} (27. Rxb7 Rxg2+ (27... Bxg2 28. Rb5 $15) 28. Kh1 axb4 $17 (28... Rxf2 29. bxa5 Bg2+ 30. Kg1 $17)) 27... axb4 {[%emt 0:01:12]} 28. Rcc7 {[%emt 0:01:42]} Rh8 {[%emt 0:00:05]} 29. axb4 {[%emt 0:00:27]} (29. Rxb7 bxa3 30. Ra7 Bg4 $11 (30... Be6 31. Rfe7 $11)) 29... Be6 {[%emt 0:00:21]} 30. Rfe7 {[%emt 0:00:16]} Bd5 {[%emt 0:00:06]} 31. g3 {[%emt 0:00:44]} Bc6 $2 {[%emt 0:00:55]} (31... Bf3 $16) 32. Bg2 $2 {[%emt 0:00:32]} ({Only move:} 32. Be2 $1 $18 Rf5 33. f4) 32... Bxg2 $4 {[%emt 0:00:19][%mdl 8192]} ({Black should try} 32... Rb5 $14) 33. Kxg2 $18 {[%emt 0:00:05]} Rb5 {[%emt 0:00:31]} (33... Rf5 $142 34. Rxb7 Rff8) 34. f4 $18 {[%emt 0:00:27]} (34. Rxb7 Rxb7 35. Rxb7 Rc8 $16) 34... Rxb4 {[%emt 0:00:22]} 35. Kf3 $2 {[%emt 0:00:05]} ({Stronger than} 35. Rxb7 Rxb7 36. Rxb7 Ra8 $11) (35. Kh3 $1 $18 {[%cal Oc7d7] and the rest is easy.} Rb6 36. g4 (36. Rxb7 Rxb7 37. Rxb7 Ra8 $11)) 35... Rb3+ $16 {[%emt 0:00:56]} 36. Kg4 {[%emt 0:00:05]} Rb5 {[%emt 0:00:13]} 37. Rf7 {[%emt 0:00:06]} b6 {[%emt 0:00:17]} 38. Rb7 $1 {[%emt 0:00:05]} Rb1 $2 {[%emt 0:00:19][%mdl 8192]} (38... Rc5 $16) 39. Rfd7 $2 {[%emt 0:00:05]} (39. Kh3 $1 $18 {Strongly threatening g4.} Rb3 40. Rfe7) 39... Rb5 $16 {[%emt 0:00:12] [#]} 40. Re7 $1 {[%emt 0:00:08]} Rb1 $2 {[%emt 0:00:05][%mdl 8192] [#]} (40... Rb2 $16) 41. Kh3 $1 $18 {[%emt 0:00:05]} Rb3 {[%emt 0:00:08]} 42. Kh4 {[%emt 0:00:05]} Rb4 {[%emt 0:00:05]} 43. Kg4 $2 {[%emt 0:00:18]} (43. Rbd7 $18 Rc4 44. Re1) 43... Rb5 {[%emt 0:00:05]} (43... Rb1 $11) 44. Kh3 $2 {[%emt 0:00:05][%mdl 8192]} (44. Red7 $16) 44... Rb3 $18 {[%emt 0:00:05]} 45. Kg2 $2 {[%emt 0:00:05]} (45. Rf7 $18 Rb1 46. Kg4) 45... Rb2+ $11 {[%emt 0:00:05]} 46. Kf3 {[%emt 0:00:05]} (46. Kh3 $11 Rb3) 46... Rb3+ $1 $16 {[%emt 0:00:05]} 47. Kg4 {[%emt 0:00:05]} Rb5 {[%emt 0:00:05]} 48. Kh3 {[%emt 0:00:05]} Rb3 {[%emt 0:00:05]} 1/2-1/2

[Event "Marshall Masters 44"]
[Site "New York"]
[Date "2024.12.18"]
[Round "3.3"]
[White "Abdullayev, Shami"]
[Black "Putnam, Liam"]
[Result "0-1"]
[ECO "B25"]
[WhiteElo "2075"]
[BlackElo "2403"]
[Annotator "TA"]
[PlyCount "88"]
[EventDate "2024.12.17"]
[EventType "swiss"]
[EventCountry "USA"]
[SourceTitle "playchess.com"]
[Source "ChessBase"]
[SourceQuality "1"]
[TimeMode "Bronstein"]
[TimeControl "1500+5"]

{[%evp 14,88,16,20,12,4,6,12,10,4,3,9,0,-13,7,13,3,4,12,2,62,0,12,-54,-58,-58,-65,-73,-22,-113,-120,-126,-39,-143,-29,-92,-100,-86,-107,-123,-47,-103,-52,-70,-82,-91,-96,-137,-137,-245,-237,-349,-349,-545,-531,-646,-657,-639,-637,-826,-791,-811,-789,-718,-641,-1021,-1018,-5712,-3643,-5700,-2004,-5189,-5302,-4134,-4133,-29985,-29986]} 1. e4 {[%emt 0:00:05]} c5 {[%emt 0:00:19]} 2. Ne2 {[%emt 0:00:06]} Nf6 {[%emt 0:00:29]} 3. Nbc3 {[%emt 0:00:06]} d6 {[%emt 0:00:17]} 4. g3 {[%emt 0:00:40]} Nc6 {[%emt 0:00:22]} 5. Bg2 {[%emt 0:00:05]} g6 {[%emt 0:00:15]} 6. O-O {[%emt 0:00:17]} Bg7 {[%emt 0:00:05]} 7. d3 {[%emt 0:01:43]} O-O {[%emt 0:00:21]} 8. Bg5 {[%emt 0:00:36]} Rb8 {[%emt 0:01:14]} 9. a4 {[%emt 0:03:12]} a6 {[%emt 0:00:16]} 10. Qd2 {[%emt 0:00:05]} b5 {[%emt 0:00:23] The position is equal.} 11. axb5 {[%emt 0:00:33]} axb5 {[%emt 0:00:05]} 12. Bh6 {[%emt 0:00:28]} b4 {[%emt 0:01:05]} 13. Nd5 {[%emt 0:02:45]} Nxd5 {[%emt 0:01:46]} 14. exd5 {[%emt 0:02:05]} Bxh6 {[%emt 0:00:50]} 15. Qxh6 {[%emt 0:00:05]} Ne5 {[%emt 0:00:05]} 16. h3 {[%emt 0:01:51] next f4 is good for White.} b3 {[%emt 0:02:03]} ({Black should try} 16... Nd7 $11) 17. Ra4 {[%emt 0:03:56]} (17. f4 $14) 17... f6 {[%emt 0:00:59]} (17... bxc2 18. Rh4) 18. Rh4 {[%emt 0:01:13]} (18. c3 $11) 18... Rf7 $15 {[%emt 0:00:05] And now ...g5 would win.} 19. f4 {[%emt 0:00:33]} Nd7 {[%emt 0:00:12]} 20. c4 {[%emt 0:02:42]} Qf8 {[%emt 0:01:11]} (20... Nb6 $17 {...Bf5 is the strong threat.} 21. Nc3 Bf5) 21. Nc3 {[%emt 0:00:40]} (21. Qxf8+ $11 {remains equal.} Nxf8 22. g4) 21... Qxh6 $17 {[%emt 0:00:21]} 22. Rxh6 {[%emt 0:00:05] [#]} Ra8 {[%emt 0:01:14]} (22... f5 $1 $17 23. Rh4 Nf6) 23. Re1 {[%emt 0:00:30]} (23. Kf2 $15) 23... Nb6 {[%emt 0:00:31]} ({Better is} 23... f5 $17 {With the idea ...Nf6.} 24. Rh4 Nf6) 24. Rh4 {[%emt 0:00:14]} (24. g4 $11 {keeps the balance.}) 24... Bf5 {[%emt 0:00:21]} 25. Bf1 {[%emt 0:00:15]} Kg7 {[%emt 0:00:42]} 26. g4 {[%emt 0:00:26]} Bd7 {[%emt 0:00:10]} (26... g5 $17 {White must now prevent ...Bg6.} 27. gxf5 gxh4) 27. f5 {[%emt 0:01:00]} Na4 {[%emt 0:00:40]} (27... Bc8 $17) 28. fxg6 {[%emt 0:00:36]} hxg6 {[%emt 0:00:05] Black keeps a firm grip on the game.} 29. Nxa4 {[%emt 0:00:05]} Rxa4 {[%emt 0:00:07]} 30. g5 {[%emt 0:00:05]} Ra2 {[%emt 0:01:37]} 31. gxf6+ {[%emt 0:00:16]} (31. Rb1 $17) 31... exf6 $19 {[%emt 0:00:05]} 32. Re2 {[%emt 0:00:06]} (32. Rb1 {might work better.}) 32... Bf5 {[%emt 0:00:05]} 33. Rd2 {[%emt 0:00:17]} (33. Re8 $142 g5 (33... Rxb2 34. Rhh8 $11) 34. Rhh8) 33... g5 {[%emt 0:00:05]} 34. Re4 {[%emt 0:00:05]} Bxe4 {[%emt 0:00:05]} 35. dxe4 {[%emt 0:00:05][%mdl 4096] Endgame. KRR-KRB} Ra1 {[%emt 0:00:21]} 36. Kg2 {[%emt 0:00:05]} Rc1 {[%emt 0:00:07]} 37. Bd3 {[%emt 0:00:05] Repels Rc2} Ra7 {[%emt 0:00:06]} 38. Kf3 {[%emt 0:00:05]} Ra2 {[%emt 0:00:19]} 39. Ke3 {[%emt 0:00:07]} Rh1 {[%emt 0:00:05]} 40. Be2 {[%emt 0:00:05]} Rxh3+ {[%emt 0:00:05]} 41. Kf2 {[%emt 0:00:05]} Rc3 {[%emt 0:00:08]} 42. Bd1 {[%emt 0:00:05] [#] Repels Rc2} Rc2 $1 {[%emt 0:00:08][%mdl 512]} 43. Bxc2 {[%emt 0:00:05]} Rxb2 {[%emt 0:00:05]} ({Not} 43... bxc2 44. Rxc2 Kh6 45. Kf3 $17) 44. Ke2 {[%emt 0:00:05]} bxc2 {[%emt 0:00:05] Weighted Error Value: White=1.11/Black=0.17 (very precise) .  Mistake:       	White=9     	Black=6      Inaccurate:     	White=1     	---        OK:         	White=6     	Black=4      Best:        	---       	Black=5} 0-1

[Event "Marshall Masters 44"]
[Site "New York"]
[Date "2024.12.18"]
[Round "3.4"]
[White "Bonin, Jay"]
[Black "Katz, Alexander"]
[Result "1/2-1/2"]
[ECO "B06"]
[WhiteElo "2102"]
[BlackElo "2405"]
[Annotator "TA"]
[PlyCount "35"]
[EventDate "2024.12.17"]
[EventType "swiss"]
[EventCountry "USA"]
[SourceTitle "playchess.com"]
[Source "ChessBase"]
[SourceQuality "1"]
[TimeMode "Bronstein"]
[TimeControl "1500+5"]

{[%evp 9,35,0,20,-17,-25,-18,-1,0,0,0,0,-2,32,45,71,92,310,44,45,43,37,0,0,0,39,0,0,0]} 1. d4 {[%emt 0:00:05]} d6 {[%emt 0:00:05]} 2. Bg5 {[%emt 0:00:07]} g6 {[%emt 0:01:13]} 3. e4 {[%emt 0:00:32]} Bg7 {[%emt 0:00:05]} 4. c3 {[%emt 0:00:06]} Nf6 {[%emt 0:00:08]} 5. Nd2 {[%emt 0:00:17]} O-O {[%emt 0:00:07]} 6. Bxf6 {[%emt 0:00:26]} exf6 {[%emt 0:01:44]} 7. Bd3 {[%emt 0:00:10]} Re8 {[%emt 0:00:05]} 8. Ne2 {[%emt 0:00:10][%cal Bg1e2,Be2f4,Bf4d5][%mdl 32]} d5 {[%emt 0:00:13]} 9. exd5 {[%emt 0:00:18]} Qxd5 {[%emt 0:00:05]} 10. O-O {[%emt 0:00:09]} b6 {[%emt 0:01:38]} 11. Nf4 {[%emt 0:02:29]} Qd6 {[%emt 0:01:17]} 12. Qf3 {[%emt 0:00:21] aiming for Nxg6.} Nc6 $2 {[%emt 0:00:23] [#]} (12... c6 $16 {was necessary.}) 13. Rfe1 $2 {[%emt 0:05:37]} (13. Bb5 $1 $18 Bb7 14. Nc4 Nxd4 15. Qxb7 (15. cxd4 Bxf3 16. Nxd6 Red8 $18) 15... Qxf4 16. cxd4) 13... Bb7 $14 {[%emt 0:00:24][%cal Oc6d4]} 14. Ne4 {[%emt 0:00:34]} Qd8 {[%emt 0:00:15]} 15. Nd5 {[%emt 0:00:20]} Re6 {[%emt 0:00:05][%cal Of6f5]} (15... Qxd5 $2 {perishes.} 16. Nxf6+ Bxf6 17. Qxd5 $18) 16. Nf4 {[%emt 0:01:09] A dynamic duo of knights.} Re8 {[%emt 0:01:04]} 17. Nd5 {[%emt 0:00:35]} Re6 {[%emt 0:00:46][%cal Of6f5]} (17... Qxd5 $2 {is the wrong capture.} 18. Nxf6+ Bxf6 19. Qxd5 $18) 18. Nf4 {[%emt 0:00:05] Weighted Error Value: White=0.46/Black=0.31.  Loses game:     	---       	Black=1      Missed win:     	White=1     	---        Inaccurate:     	White=1     	Black=2      OK:         	White=6     	Black=4      Best:        	White=2     	Black=1} 1/2-1/2

[Event "Marshall Masters 44"]
[Site "New York"]
[Date "2024.12.18"]
[Round "3.5"]
[White "Chasin, Nico"]
[Black "Mullodzhanov, Nathaniel"]
[Result "0-1"]
[ECO "E73"]
[WhiteElo "2417"]
[BlackElo "1927"]
[Annotator "TA"]
[PlyCount "58"]
[EventDate "2024.12.17"]
[EventType "swiss"]
[EventCountry "USA"]
[SourceTitle "playchess.com"]
[Source "ChessBase"]
[SourceQuality "1"]
[TimeMode "Bronstein"]
[TimeControl "1500+5"]

{[%evp 14,58,62,60,73,70,71,59,62,70,57,64,87,70,67,39,39,0,19,-32,0,5,10,-73,-63,-70,-4,-51,0,0,52,39,46,41,56,35,167,163,267,0,0,-781,-774,-29988,-29989,-29989,-29990]} 1. d4 {[%emt 0:00:05]} Nf6 {[%emt 0:00:05]} 2. c4 {[%emt 0:00:05]} g6 {[%emt 0:00:05]} 3. Nc3 {[%emt 0:00:05]} Bg7 {[%emt 0:00:05]} 4. e4 {[%emt 0:00:05]} d6 {[%emt 0:00:05]} 5. Be2 {[%emt 0:00:05]} O-O {[%emt 0:00:05]} 6. Be3 {[%emt 0:00:05]} e5 {[%emt 0:00:06]} 7. d5 {[%emt 0:00:05]} a5 {[%emt 0:00:09]} 8. g4 {[%emt 0:00:05]} Na6 {[%emt 0:00:16]} 9. g5 {[%emt 0:00:05]} Nd7 {[%emt 0:00:06]} 10. h4 {[%emt 0:00:05]} f5 {[%emt 0:01:46]} 11. gxf6 $1 {[%emt 0:00:23]} Nxf6 {[%emt 0:00:12]} 12. h5 {[%emt 0:00:14]} Nc5 {[%emt 0:01:03]} 13. hxg6 {[%emt 0:00:05]} hxg6 {[%emt 0:00:10]} 14. Bf3 {[%emt 0:00:19]} c6 {[%emt 0:00:40]} 15. Qe2 {[%emt 0:00:05]} cxd5 {[%emt 0:00:18]} 16. Bxc5 {[%emt 0:00:35]} (16. cxd5 $11 a4 17. Bxc5 dxc5 18. Qc4) 16... dxc5 {[%emt 0:00:34]} (16... dxe4 {keeps more tension.} 17. Bxe4 Nxe4 18. Qxe4 dxc5 19. Qxg6 Bf5) 17. cxd5 {[%emt 0:00:05]} a4 {[%emt 0:03:16][%cal Ba5a4,Ba4a3][%mdl 32]} 18. O-O-O {[%emt 0:01:20]} (18. Qd2 $11) 18... a3 $1 $17 {[%emt 0:00:30] White must now prevent ...Qa5.} 19. b3 {[%emt 0:00:23]} Ne8 {[%emt 0:00:50]} (19... Qa5 $15 20. Qc2 c4 21. bxc4 b5) 20. Kb1 {[%emt 0:01:07]} (20. Qc4 $11) 20... Nd6 {[%emt 0:00:38]} ({Black should try} 20... Qa5 $1 $15 21. Rc1 (21. Nb5 $2 Bd7 $19) 21... Qb4) 21. Bg4 $11 {[%emt 0:01:07]} c4 {[%emt 0:01:31]} 22. Be6+ $1 $14 {[%emt 0:00:05]} ({Don't blunder} 22. Bxc8 $2 Rxc8 23. Qe3 cxb3 $19) 22... Bxe6 {[%emt 0:00:05]} 23. dxe6 {[%emt 0:00:05]} cxb3 {[%emt 0:00:12]} 24. Nd5 $1 {[%emt 0:00:25] e7 would now be deadly.} bxa2+ {[%emt 0:01:19]} (24... Re8 $1 $14) 25. Ka1 $1 $18 {[%emt 0:00:09]} Rf4 {[%emt 0:03:00] Prevents Qg4} (25... Re8 $142) 26. Nh3 $2 {[%emt 0:01:28] A dynamic duo of knights.} (26. f3 $18) 26... Rxe4 $11 {[%emt 0:00:20]} 27. Qxa2 $2 {[%emt 0:00:05][%mdl 8192] [#]} (27. Qc2 $11) 27... Rc4 $1 $19 {[%emt 0:00:36] ( -> ...e4+)} 28. e7 {[%emt 0:05:16] [#]} e4+ $1 {[%emt 0:00:21]} 29. Kb1 {[%emt 0:00:08]} Qa5 {[%emt 0:00:19]} 0-1

[Event "Marshall Masters 44"]
[Site "New York"]
[Date "2024.12.18"]
[Round "4.1"]
[White "Putnam, Liam"]
[Black "Tang, Andrew"]
[Result "0-1"]
[ECO "C60"]
[WhiteElo "2403"]
[BlackElo "2527"]
[Annotator "TA"]
[PlyCount "75"]
[EventDate "2024.12.17"]
[EventType "swiss"]
[EventCountry "USA"]
[SourceTitle "playchess.com"]
[Source "ChessBase"]
[SourceQuality "1"]
[TimeMode "Bronstein"]
[TimeControl "1500+5"]

{[%evp 11,75,0,0,0,0,-82,-15,-25,0,-32,0,-23,-34,-40,-37,-92,-28,-27,-16,-20,-8,-94,-47,-193,-209,-157,-44,-52,-45,-106,-105,-111,-110,-122,-102,-230,-231,-242,-236,-230,-229,-229,-106,-100,0,-224,-230,-231,-229,-210,-226,-222,-210,-228,-214,-313,-275,-266,-268,-489,-491,-628,-597,-1205,-973,-29991]} 1. e4 {[%emt 0:00:27]} e5 {[%emt 0:00:05]} 2. Nf3 {[%emt 0:00:05]} Nc6 {[%emt 0:00:05]} 3. Bb5 {[%emt 0:00:05]} g6 {[%emt 0:00:09]} 4. d4 {[%emt 0:00:13]} exd4 {[%emt 0:00:05]} 5. Nxd4 {[%emt 0:00:51]} Bg7 {[%emt 0:00:05]} 6. Nxc6 {[%emt 0:01:50]} bxc6 {[%emt 0:00:05]} 7. Ba4 {[%emt 0:00:49]} Ba6 {[%emt 0:00:28]} 8. Nd2 {[%emt 0:02:26]} (8. Nc3 $11) 8... Ne7 {[%emt 0:05:24]} (8... Qg5 $1 $17 {[%cal Rg5g2]} 9. g3 Qa5) 9. c4 {[%emt 0:00:05]} O-O {[%emt 0:01:15]} 10. O-O {[%emt 0:00:08]} f5 {[%emt 0:01:13]} 11. exf5 {[%emt 0:00:56]} Nxf5 {[%emt 0:00:29]} 12. Rb1 {[%emt 0:00:10]} Nd4 {[%emt 0:00:43]} 13. Nb3 {[%emt 0:04:10]} (13. b4 $15) 13... Ne6 {[%emt 0:03:46] Black is much more active. The white rooks are passive.} ({Black should play} 13... Qh4 $1 $17 {[%cal Od4f3] aiming for ...Nf3+!.} 14. Nxd4 Bxd4) 14. Na5 {[%emt 0:00:09]} Bd4 {[%emt 0:00:44]} 15. b4 {[%emt 0:00:19]} Qh4 {[%emt 0:00:37][%cal Rf8f2]} 16. g3 {[%emt 0:01:46]} (16. Be3 $1 $11) 16... Qf6 {[%emt 0:02:16]} (16... Qh3 $17 17. Rb3 Bb6) 17. Be3 {[%emt 0:00:42]} (17. Kg2 $15) 17... Bxe3 $19 {[%emt 0:00:43]} 18. fxe3 {[%emt 0:00:05] [#]} Qe5 {[%emt 0:00:05]} (18... Qc3 $1 $17 {[%cal Rc3e3]} 19. Re1 Ng5 (19... Bxc4 $2 20. Nxc4 Ng5 21. Re2 $18)) 19. Qd3 $15 {[%emt 0:03:44]} Rae8 {[%emt 0:02:08]} 20. Bb3 {[%emt 0:02:22]} (20. Rxf8+ $15 Rxf8 21. Rf1) 20... c5 $17 {[%emt 0:00:34]} 21. b5 {[%emt 0:00:05]} Bc8 {[%emt 0:00:05]} 22. Bc2 {[%emt 0:00:19]} Kg7 {[%emt 0:01:08]} 23. Qe4 {[%emt 0:01:02]} (23. Kg2 $17) 23... Qc3 $19 {[%emt 0:00:44]} 24. Rxf8 {[%emt 0:00:46]} Rxf8 {[%emt 0:00:09]} 25. Nb3 {[%emt 0:00:06]} Qf6 {[%emt 0:02:11]} 26. Qg2 {[%emt 0:00:28]} Qe5 {[%emt 0:00:12]} (26... Ng5 $19 {has better winning chances.} 27. Rf1 Qc3 28. Rxf8 Kxf8 29. Nxc5 Qxe3+ 30. Qf2+ Nf3+ 31. Kg2 Qxf2+ 32. Kxf2 Nxh2) 27. Qe4 $17 {[%emt 0:00:47]} Qf6 {[%emt 0:00:05]} (27... Qg5 $17 28. Rf1 Bb7) 28. Qg2 $1 $19 {[%emt 0:00:05]} Ng5 {[%emt 0:00:14]} 29. Rf1 {[%emt 0:00:23]} Nf3+ {[%emt 0:01:21]} 30. Kh1 {[%emt 0:00:05]} Bb7 {[%emt 0:00:05][%cal Of3e1] Inhibits Be4.} (30... d6 $2 31. Be4 Bg4 32. Nd2 $18) 31. e4 {[%emt 0:00:05] [#]} (31. Nxc5 $2 Ne1 32. Kg1 Bxg2 $19) 31... Qc3 $1 {[%emt 0:00:05] Prevents Nd2} (31... d6 $2 32. Nd2 Qc3 33. Nxf3 $18) 32. Qe2 {[%emt 0:01:28] Dodges Ne1} (32. Nxc5 $2 Ne1 33. Qh3 Rxf1+ (33... Qxc4 $2 {is the wrong capture.} 34. Qxd7+ Rf7 35. Rxf7+ Qxf7 36. Ne6+ Kf6 37. Qd4+ Ke7 38. Qd8+ Kxe6 39. Bb3+ Ke5 40. Bxf7 $18) 34. Qxf1 Nxc2 $19 (34... Qxc2 35. Qxe1 Ba8 36. Qf1 $11)) 32... d6 {[%emt 0:00:10]} 33. Kg2 {[%emt 0:00:14]} (33. Rc1) 33... Ne5 {[%emt 0:00:06]} 34. Rxf8 {[%emt 0:00:05]} Kxf8 {[%emt 0:00:05]} 35. Qd2 $2 {[%emt 0:00:12]} (35. Bd1 {is a better defense.}) 35... Qxc4 {[%emt 0:00:05]} 36. Na5 {[%emt 0:00:18]} Bxe4+ {[%emt 0:00:05]} 37. Kf2 {[%emt 0:00:05]} Qxc2 {[%emt 0:00:05]} 38. Ke3 {[%emt 0:00:15]} 0-1